bitfinex-derivatives/quotes_SOLF0:USTF0_20260302
["timestamp","ask_amount","ask_price","bid_price","bid_amount"]
[1772490091527,3.33872282,87.61,87.568,12.95589565]
[1772490093333,3.33872282,87.61,87.57,10.277]
[1772490093632,3.33872282,87.61,87.571,12.95589565]
[1772490096030,10.272,87.614,87.571,12.95589565]
[1772490096535,13.15760569,87.619,87.573,12.95589565]
[1772490098030,10.271,87.618,87.579,10.276]
[1772490103035,10.271,87.618,87.573,12.95589565]
[1772490104038,23.42860569,87.618,87.573,12.95589565]
[1772490104241,23.42860569,87.618,87.576,10.276]
[1772490104536,23.42860569,87.618,87.577,12.95589565]
[1772490106541,13.15760569,87.618,87.577,12.95589565]
[1772490107337,10.271,87.617,87.577,23.23189565]
[1772490107541,10.271,87.617,87.578,11.96094483]
[1772490107941,10.27,87.624,87.582,11.96094483]
[1772490108241,12.92238418,87.623,87.582,11.96094483]
[1772490108437,3.33628059,87.62,87.582,11.96094483]
[1772490108742,16.25866477,87.62,87.582,11.96094483]
[1772490109336,16.25866477,87.62,87.585,10.275]
[1772490109839,16.25866477,87.62,87.586,11.96094483]
[1772490110040,12.92238418,87.619,87.585,10.275]
[1772490112239,3.33628059,87.64,87.586,11.96094483]
[1772490112442,10.58481217,87.642,87.601,11.96094483]
[1772490112647,12.92238418,87.659,87.601,11.96094483]
[1772490112944,3.33628059,87.66,87.6,3.33628059]
[1772490112945,23.18838418,87.658,87.613,11.96094483]
[1772490113136,12.92238418,87.639,87.598,11.96094483]
[1772490113339,12.92238418,87.639,87.581,11.96094483]
[1772490113536,12.92238418,87.639,87.543,20.56]
[1772490113537,12.92238418,87.619,87.566,11.96094483]
[1772490113845,3.33628059,87.61,87.566,11.96094483]
[1772490114538,12.92238418,87.619,87.576,10.276]
[1772490114943,12.92238418,87.619,87.577,11.96094483]
[1772490116142,3.33628059,87.63,87.577,11.96094483]
[1772490117141,16.25866477,87.63,87.588,10.275]
[1772490118849,16.25866477,87.63,87.588,22.23594483]
[1772490119045,9.26741928,87.638,87.594,11.96094483]
[1772490119249,9.26741928,87.638,87.58,3.33628059]
[1772490119250,12.92238418,87.639,87.581,11.96094483]
[1772490120046,9.26741928,87.641,87.59,15.29722542]
[1772490120239,16.25866477,87.64,87.591,11.96094483]
[1772490120440,12.92238418,87.639,87.591,11.96094483]
[1772490121242,9.26741928,87.645,87.601,11.96094483]
[1772490121447,9.26741928,87.661,87.611,11.96094483]
[1772490121642,12.92238418,87.664,87.611,11.96094483]
[1772490122252,12.92238418,87.664,87.627,10.27]
[1772490124350,3.33628059,87.66,87.627,10.27]
[1772490125356,10.264,87.682,87.582,20.551]
[1772490125357,9.26741928,87.676,87.641,11.96094483]
[1772490125546,9.25949637,87.692,87.641,11.96094483]
[1772490125745,12.92238418,87.693,87.641,11.96094483]
[1772490126356,12.92238418,87.693,87.653,10.267]
[1772490127454,12.92238418,87.706,87.66,10.266]
[1772490127752,3.33628059,87.7,87.66,10.266]
[1772490128154,16.25866477,87.7,87.66,10.266]
[1772490128355,12.92238418,87.699,87.66,10.266]
[1772490129863,12.92238418,87.715,87.669,10.265]
[1772490130059,12.92238418,87.709,87.67,11.96094483]
[1772490130659,3.33628059,87.72,87.67,11.96094483]
[1772490131151,3.33628059,87.72,87.683,10.263]
[1772490131654,12.92238418,87.722,87.683,10.263]
[1772490131859,3.33628059,87.72,87.683,10.263]
[1772490132058,12.92238418,87.722,87.67,11.96094483]
[1772490132059,3.33628059,87.71,87.675,10.264]
[1772490132357,10.58481217,87.757,87.655,11.96094483]
[1772490132358,16.25866477,87.7,87.655,11.96094483]
[1772490132760,3.33628059,87.69,87.657,10.266]
[1772490132950,3.33628059,87.69,87.641,11.96094483]
[1772490132951,16.25866477,87.69,87.641,11.96094483]
[1772490133454,3.33628059,87.72,87.671,11.96094483]
[1772490133754,12.92238418,87.729,87.682,10.263]
[1772490134150,3.33628059,87.72,87.682,10.263]
[1772490134352,12.92238418,87.719,87.682,10.263]
[1772490134756,3.33628059,87.71,87.682,10.263]
[1772490135352,12.92238418,87.709,87.655,11.96094483]
[1772490135559,3.33628059,87.7,87.651,11.96094483]
[1772490135855,12.92238418,87.716,87.661,11.96094483]
[1772490136154,12.92238418,87.716,87.677,10.264]
[1772490136560,12.92238418,87.716,87.661,11.96094483]
[1772490137054,12.92238418,87.716,87.676,10.264]
[1772490137757,3.33628059,87.71,87.676,10.264]
[1772490138361,12.12005306,87.709,87.667,10.265]
[1772490140665,3.33628059,87.7,87.661,11.96094483]
[1772490142368,3.33628059,87.7,87.663,10.266]
[1772490143963,12.12005306,87.709,87.664,12.53526263]
[1772490145362,12.12005306,87.709,87.671,10.265]
[1772490146061,12.12005306,87.689,87.64,12.53526263]
[1772490147367,12.12005306,87.689,87.654,10.267]
[1772490148269,14.06744264,87.741,87.64,12.53526263]
[1772490148270,3.33628059,87.7,87.661,10.266]
[1772490148570,12.12005306,87.699,87.661,10.266]
[1772490150467,12.12005306,87.697,87.653,12.53526263]
[1772490150765,12.12005306,87.689,87.631,12.53526263]
[1772490150970,3.33628059,87.68,87.631,12.53526263]
[1772490151869,12.12005306,87.689,87.631,12.53526263]
[1772490152270,12.12005306,87.688,87.647,10.268]
[1772490153473,22.38305306,87.687,87.647,10.268]
[1772490153775,12.12005306,87.686,87.647,10.268]
[1772490157378,12.12005306,87.686,87.642,12.53526263]
[1772490157577,12.12005306,87.698,87.642,12.53526263]
[1772490158175,12.12005306,87.698,87.658,10.266]
[1772490160677,10.262,87.695,87.658,10.266]
[1772490160888,12.12005306,87.694,87.658,10.266]
[1772490161086,3.33628059,87.69,87.658,10.266]
[1772490161588,12.12005306,87.689,87.658,10.266]
[1772490162489,12.12005306,87.689,87.651,10.267]
[1772490163388,12.12005306,87.702,87.661,12.53526263]
[1772490164387,12.12005306,87.702,87.669,10.265]
[1772490166986,12.12005306,87.702,87.675,10.264]
[1772490168594,12.12005306,87.702,87.661,12.53526263]
[1772490168595,12.12005306,87.702,87.667,10.265]
[1772490173187,12.79381182,87.71,87.661,11.85111662]
[1772490173596,12.79381182,87.709,87.661,11.85111662]
[1772490174198,12.79381182,87.709,87.675,10.264]
[1772490179004,10.58481217,87.729,87.687,11.85111662]
[1772490179201,12.79381182,87.729,87.687,11.85111662]
[1772490180193,12.79381182,87.728,87.688,10.263]
[1772490180998,12.79381182,87.725,87.688,10.263]
[1772490181395,12.79381182,87.709,87.682,10.264]
[1772490181598,3.33106864,87.7,87.664,11.85111662]
[1772490181898,12.79381182,87.689,87.657,10.266]
[1772490182100,3.33106864,87.68,87.642,11.85111662]
[1772490182305,3.33106864,87.67,87.611,11.85111662]
[1772490182506,16.12488046,87.65,87.611,11.85111662]
[1772490183505,10.265,87.669,87.626,10.27]
[1772490183704,3.33106864,87.65,87.611,11.85111662]
[1772490184300,3.33106864,87.67,87.625,11.85111662]
[1772490184500,3.33106864,87.68,87.625,11.85111662]
[1772490185108,16.12488046,87.67,87.625,11.85111662]
[1772490185311,3.33106864,87.66,87.625,11.85111662]
[1772490185711,3.33106864,87.68,87.631,11.85111662]
[1772490186210,16.12488046,87.68,87.631,11.85111662]
[1772490187206,16.12488046,87.68,87.644,10.268]
[1772490187408,3.33106864,87.7,87.651,11.85111662]
[1772490188312,12.79381182,87.72,87.671,11.85111662]
[1772490188512,3.33106864,87.71,87.623,11.85111662]
[1772490188713,3.33106864,87.71,87.672,10.265]
[1772490189312,3.33106864,87.74,87.681,11.85111662]
[1772490189711,464.69910548,87.734,87.705,11.85111662]
[1772490189902,3.33106864,87.75,87.705,11.85111662]
[1772490190609,12.79381182,87.752,87.705,11.85111662]
[1772490190808,12.79381182,87.752,87.687,11.85111662]
[1772490190809,8.90966539,87.75,87.687,11.85111662]
[1772490191005,12.79381182,87.749,87.687,11.85111662]
[1772490192413,12.79381182,87.749,87.701,10.261]
[1772490193114,12.79381182,87.796,87.718,11.85111662]
[1772490194113,1.98322239,87.817,87.763,11.85111662]
[1772490194114,12.79381182,87.816,87.763,11.85111662]
[1772490194314,12.79381182,87.834,87.763,11.85111662]
[1772490195309,12.79381182,87.834,87.773,10.253]
[1772490196916,182.44,87.878,87.712,12.29527425]
[1772490196917,12.66825727,87.819,87.712,12.29527425]
[1772490197122,12.66825727,87.819,87.721,12.29527425]
[1772490197714,11.79991854,87.807,87.743,12.4553637]
[1772490199317,11.79991854,87.805,87.743,12.4553637]
[1772490199714,10.248,87.818,87.745,10.256]
[1772490199920,11.79991854,87.819,87.743,12.4553637]
[1772490200620,11.79991854,87.818,87.756,12.4553637]
[1772490201018,11.79991854,87.805,87.756,12.4553637]
[1772490202220,22.04991854,87.803,87.756,12.4553637]
[1772490203125,11.79991854,87.803,87.756,12.4553637]
[1772490204627,10.25,87.801,87.756,12.4553637]
[1772490205220,11.79991854,87.803,87.756,12.4553637]
[1772490205529,11.79991854,87.803,87.741,12.4553637]
[1772490206227,10.251,87.791,87.741,12.4553637]
[1772490207820,10.25,87.8,87.742,10.256]
[1772490208028,11.79991854,87.799,87.742,22.7113637]
[1772490208421,10.251,87.788,87.728,10.258]
[1772490208626,11.79991854,87.787,87.729,12.4553637]
[1772490209130,10.252,87.786,87.732,10.258]
[1772490209328,22.05191854,87.786,87.732,10.258]
[1772490211031,22.05191854,87.786,87.7,8.90966539]
[1772490211032,11.79991854,87.786,87.737,12.4553637]
[1772490212431,11.79991854,87.786,87.742,10.256]
[1772490214036,11.79991854,87.786,87.745,10.256]
[1772490214538,11.79991854,87.782,87.725,12.4553637]
[1772490215036,8.90966539,87.78,87.725,12.4553637]
[1772490215236,11.79991854,87.779,87.725,12.4553637]
[1772490216440,10.254,87.764,87.725,12.4553637]
[1772490217033,10.254,87.764,87.716,10.26]
[1772490217235,10.254,87.764,87.716,22.7153637]
[1772490218135,11.79991854,87.785,87.721,12.4553637]
[1772490221246,11.79991854,87.774,87.727,10.258]
[1772490224450,3.32453351,87.77,87.727,10.258]
[1772490224949,11.43,87.82,87.691,20.525]
[1772490224950,20.497,87.815,87.73,2.8630412]
[1772490225149,11.79991854,87.836,87.78,3.32453351]
[1772490225340,10.58481217,87.875,87.771,2.8630412]
[1772490225341,3.32453351,87.82,87.771,2.8630412]
[1772490225542,3.32453351,87.82,87.76,3.32453351]
[1772490225543,11.79991854,87.81,87.76,3.32453351]
[1772490226553,11.79991854,87.81,87.756,2.8630412]
[1772490226750,11.79991854,87.805,87.759,10.254]
[1772490227353,11.79991854,87.801,87.759,10.254]
[1772490227955,10.25,87.8,87.759,10.254]
[1772490228759,11.98283266,87.799,87.759,10.254]
[1772490229256,10.25,87.798,87.759,10.254]
[1772490229457,11.98283266,87.797,87.759,10.254]
[1772490230057,11.98283266,87.794,87.727,2.6672982]
[1772490230252,11.98283266,87.794,87.701,2.6672982]
[1772490231259,11.98283266,87.771,87.701,2.6672982]
[1772490232262,11.98283266,87.771,87.722,10.259]
[1772490233454,11.98283266,87.771,87.729,10.258]
[1772490233653,11.98283266,87.771,87.715,3.29878648]
[1772490234059,11.98283266,87.771,87.736,10.257]
[1772490238953,11.98283266,87.771,87.715,3.29878648]
[1772490239160,11.98283266,87.768,87.701,3.31838705]
[1772490241270,11.98283266,87.766,87.721,10.259]
[1772490241569,10.58481217,87.775,87.714,3.47148776]
[1772490241570,9.17997139,87.774,87.714,3.47148776]
[1772490241865,11.98283266,87.781,87.714,3.47148776]
[1772490242562,11.98283266,87.781,87.685,20.99965926]
[1772490242563,11.98283266,87.797,87.737,4.58941889]
[1772490242768,9.17997139,87.803,87.737,4.58941889]
[1772490242968,10.58481217,87.806,87.737,4.58941889]
[1772490243168,10.58481217,87.807,87.737,4.58941889]
[1772490243570,10.58481217,87.807,87.753,4.56966585]
[1772490244066,11.98283266,87.812,87.753,4.56966585]
[1772490246372,11.98283266,87.812,87.776,10.252]
[1772490247272,22.22983266,87.826,87.784,10.252]
[1772490247674,0.00028185,87.828,87.811,10.248]
[1772490247973,11.98283266,87.84,87.771,4.52145892]
[1772490248371,11.98283266,87.84,87.791,4.5136097]
[1772490249166,11.98283266,87.84,87.796,10.25]
[1772490250269,11.98283266,87.84,87.77,8.89603965]
[1772490250270,11.98283266,87.838,87.787,10.251]
[1772490251374,11.98283266,87.833,87.787,10.251]
[1772490251673,11.98283266,87.833,87.794,10.25]
[1772490251874,11.98283266,87.833,87.776,4.43707211]
[1772490253274,11.98283266,87.833,87.786,10.251]
[1772490254971,11.98283266,87.822,87.778,10.252]
[1772490256475,11.43,87.908,87.726,14.21547205]
[1772490256476,11.98283266,87.877,87.781,4.25390224]
[1772490256773,11.98283266,87.877,87.801,4.25390224]
[1772490256972,13.96456428,87.877,87.801,4.25390224]
[1772490258478,12.30796797,87.853,87.809,10.249]
[1772490259074,1.98173162,87.877,87.801,4.25390224]
[1772490259280,12.30796797,87.876,87.801,4.25390224]
[1772490259472,12.30796797,87.876,87.847,10.244]
[1772490259878,12.30796797,87.894,87.823,4.308583]
[1772490261278,12.30796797,87.892,87.844,10.245]
[1772490262170,12.30796797,87.892,87.823,4.308583]
[1772490262574,12.30796797,87.892,87.838,3.92465827]
[1772490264176,12.30796797,87.892,87.859,10.243]
[1772490266484,12.30796797,87.892,87.8,8.89603965]
[1772490266485,8.89603965,87.89,87.822,3.78136191]
[1772490266784,12.30796797,87.889,87.822,3.78136191]
[1772490266985,12.30796797,87.886,87.839,10.245]
[1772490268686,12.30796797,87.886,87.849,10.244]
[1772490269080,12.30796797,87.886,87.822,3.78136191]
[1772490269478,12.30796797,87.886,87.842,10.245]
[1772490270588,12.30796797,87.886,87.849,10.244]
[1772490271782,12.30796797,87.886,87.842,10.245]
[1772490272484,12.30796797,87.886,87.822,3.78136191]
[1772490273189,12.30796797,87.886,87.849,10.244]
[1772490277991,12.30796797,87.885,87.849,10.244]
[1772490279288,12.30796797,87.883,87.849,10.244]
[1772490279687,10.24,87.882,87.842,10.245]
[1772490279993,12.30796797,87.883,87.801,3.84465655]
[1772490280389,12.30796797,87.866,87.815,4.1146315]
[1772490281585,12.30796797,87.879,87.843,10.245]
[1772490282594,10.241,87.878,87.843,10.245]
[1772490282792,12.30796797,87.877,87.843,10.245]
[1772490284801,12.30796797,87.877,87.836,10.245]
[1772490286303,10.241,87.876,87.836,10.245]
[1772490286501,12.30796797,87.875,87.836,10.245]
[1772490286701,12.30796797,87.875,87.842,10.245]
[1772490288606,12.30796797,87.875,87.834,10.246]
[1772490289004,12.30796797,87.875,87.828,4.1021115]
[1772490290309,12.30796797,87.875,87.84,10.245]
[1772490290904,12.30796797,87.875,87.832,10.246]
[1772490291106,11.44056471,87.867,87.816,4.16407148]
[1772490292302,11.44056471,87.863,87.826,4.1916516]
[1772490292505,3.31651405,87.88,87.826,4.1916516]
[1772490292708,3.31651405,87.88,87.831,4.1916516]
[1772490293410,3.31651405,87.88,87.847,10.244]
[1772490293610,11.44056471,87.882,87.847,10.244]
[1772490294609,3.31651405,87.88,87.847,10.244]
[1772490294816,11.44056471,87.879,87.847,10.244]
[1772490298915,11.44056471,87.879,87.84,10.245]
[1772490299206,11.44056471,87.87,87.819,4.20918911]
[1772490300305,11.44056471,87.855,87.815,10.248]
[1772490300509,11.44056471,87.855,87.807,4.15647451]
[1772490301313,9.12888088,87.873,87.831,4.14654803]
[1772490301510,3.31651405,87.89,87.831,4.14654803]
[1772490301705,9.12888088,87.897,87.831,4.14654803]
[1772490301706,11.44056471,87.889,87.831,4.14654803]
[1772490302408,11.44056471,87.885,87.831,4.14654803]
[1772490302804,11.44056471,87.884,87.844,10.245]
[1772490303010,11.44056471,87.879,87.831,4.14654803]
[1772490304206,10.241,87.871,87.835,10.246]
[1772490305214,10.241,87.871,87.831,4.14654803]
[1772490306319,10.241,87.871,87.832,10.246]
[1772490309214,21.68156471,87.871,87.832,10.246]
[1772490311318,30.81044559,87.871,87.832,10.246]
[1772490311618,9.12888088,87.87,87.832,10.246]
[1772490311819,21.68156471,87.871,87.832,10.246]
[1772490312114,11.44056471,87.87,87.832,10.246]
[1772490312319,10.242,87.869,87.832,10.246]
[1772490312615,11.44056471,87.859,87.801,3.98723978]
[1772490312923,11.44056471,87.859,87.748,28.23786122]
[1772490312924,10.58481217,87.863,87.819,3.97932624]
[1772490313120,9.12888088,87.874,87.821,3.97861703]
[1772490313316,11.44056471,87.875,87.797,20.501]
[1772490313317,11.44056471,87.875,87.831,3.97861703]
[1772490314121,11.44056471,87.873,87.832,10.246]
[1772490314624,11.44056471,87.873,87.831,3.97861703]
[1772490314920,11.44056471,87.882,87.845,10.244]
[1772490315326,9.12888088,87.883,87.843,3.83482592]
[1772490315511,10.58481217,87.894,87.843,3.83482592]
[1772490316212,11.44056471,87.897,87.851,10.244]
[1772490316820,3.31651405,87.89,87.851,10.244]
[1772490317618,11.60815923,87.895,87.851,10.244]
[1772490317818,3.31651405,87.89,87.851,10.244]
[1772490318020,3.31651405,87.88,87.843,14.07982592]
[1772490320019,3.31651405,87.87,87.836,10.246]
[1772490320226,14.92467328,87.87,87.836,10.246]
[1772490320720,11.60815923,87.869,87.829,3.69963389]
[1772490321122,3.31651405,87.86,87.829,3.69963389]
[1772490321323,3.31651405,87.87,87.829,3.69963389]
[1772490321522,3.31651405,87.89,87.831,3.68299412]
[1772490321821,3.31651405,87.89,87.855,3.67602837]
[1772490322022,3.31651405,87.9,87.855,3.67602837]
[1772490323227,3.31651405,87.9,87.869,10.242]
[1772490323520,10.58481217,87.919,87.812,34.71247205]
[1772490323521,9.15194053,87.915,87.87,3.54107702]
[1772490323724,2.5287527,87.945,87.898,3.54107702]
[1772490323920,1.98025436,87.947,87.901,3.53427036]
[1772490324114,3.31651405,87.96,87.901,3.53427036]
[1772490324924,3.31651405,87.96,87.913,10.237]
[1772490326626,10.231,87.962,87.913,10.237]
[1772490327923,11.60815923,87.957,87.895,10.239]
[1772490328526,11.60815923,87.957,87.902,13.70042098]
[1772490329030,11.60815923,87.957,87.886,3.45599635]
[1772490329525,10.233,87.942,87.889,10.239]
[1772490329730,1.97948277,87.987,87.836,337.01678209]
[1772490329731,11.60815923,87.939,87.841,3.45551966]
[1772490330231,21.84215923,87.939,87.871,3.41119369]
[1772490330932,10.234,87.932,87.885,10.24]
[1772490331134,10.234,87.932,87.886,3.40445978]
[1772490331932,21.84215923,87.932,87.886,3.40445978]
[1772490332832,21.84215923,87.932,87.888,3.38180387]
[1772490334435,21.84215923,87.932,87.89,10.239]
[1772490337037,21.84215923,87.932,87.89,13.58857729]
[1772490338037,11.60815923,87.953,87.898,3.34378709]
[1772490338634,8.86735538,87.98,87.907,3.41554557]
[1772490338834,11.60815923,87.98,87.907,3.41554557]
[1772490339635,11.60815923,87.978,87.923,3.40939273]
[1772490340540,11.60815923,87.976,87.934,10.234]
[1772490340742,11.60815923,87.976,87.896,3.25626529]
[1772490341743,11.60815923,87.976,87.936,10.234]
[1772490342440,11.60815923,87.99,87.948,10.233]
[1772490342642,11.60815923,87.99,87.937,3.04458696]
[1772490342842,11.60815923,87.988,87.937,3.04458696]
[1772490344243,11.60815923,87.978,87.932,10.234]
[1772490346445,11.60815923,87.978,87.94,2.74197682]
[1772490347349,10.228,87.988,87.94,2.74197682]
[1772490347955,21.30167306,87.988,87.94,2.74197682]
[1772490348248,21.30167306,87.988,87.941,10.233]
[1772490348449,3.30856446,87.98,87.941,10.233]
[1772490349151,3.30856446,87.96,87.91,3.30856446]
[1772490349350,3.30856446,87.96,87.901,2.75778957]
[1772490349550,3.30856446,87.96,87.911,2.75778957]
[1772490350250,3.30856446,87.96,87.929,10.235]
[1772490351457,11.07367306,87.959,87.911,2.75778957]
[1772490351749,3.30856446,87.95,87.911,2.75778957]
[1772490352752,14.38223752,87.95,87.911,2.75778957]
[1772490352954,3.30856446,87.95,87.919,10.236]
[1772490353850,11.07367306,87.959,87.919,10.236]
[1772490354653,3.30856446,87.95,87.919,10.236]
[1772490357154,3.30856446,87.95,87.912,10.237]
[1772490357757,11.07367306,87.949,87.912,10.237]
[1772490357950,3.30856446,87.94,87.904,10.238]
[1772490358153,11.07367306,87.939,87.904,10.238]
[1772490358858,3.30856446,87.93,87.896,10.239]
[1772490361862,11.07367306,87.919,87.871,2.91774099]
[1772490363461,11.07367306,87.919,87.882,10.24]
[1772490363854,3.30856446,87.91,87.876,2.93231317]
[1772490364752,3.30856446,87.91,87.86,3.30856446]
[1772490364753,3.30856446,87.9,87.86,2.89747067]
[1772490365157,11.07367306,87.909,87.86,2.89747067]
[1772490365361,11.07367306,87.909,87.861,2.89303229]
[1772490367466,11.07367306,87.909,87.882,10.24]
[1772490368265,11.07367306,87.909,87.861,2.89303229]
[1772490368561,3.30856446,87.89,87.848,2.93767106]
[1772490368761,11.07367306,87.899,87.848,2.93767106]
[1772490370560,3.30856446,87.89,87.848,2.93767106]
[1772490370759,3.30856446,87.88,87.848,2.93767106]
[1772490371171,11.07367306,87.935,87.861,2.91487753]
[1772490371363,11.07367306,87.929,87.871,2.91487753]
[1772490372267,11.07367306,87.928,87.89,10.239]
[1772490373667,3.30856446,87.92,87.89,10.239]
[1772490375274,11.07367306,87.928,87.89,10.239]
[1772490376970,11.48718634,87.926,87.883,10.24]
[1772490377163,11.48718634,87.919,87.871,2.91487753]
[1772490377370,11.48718634,87.919,87.876,10.241]
[1772490378166,10.236,87.918,87.876,10.241]
[1772490378366,3.30856446,87.89,87.84,2.31947584]
[1772490378570,3.30856446,87.89,87.841,2.31947584]
[1772490378766,3.30856446,87.89,87.862,10.242]
[1772490379675,3.30856446,87.89,87.853,10.243]
[1772490379873,3.30856446,87.89,87.841,2.31947584]
[1772490380675,11.35093009,87.889,87.817,2.26100498]
[1772490380870,3.30856446,87.88,87.821,2.26100498]
[1772490381177,3.30856446,87.88,87.836,10.246]
[1772490381178,11.35093009,87.879,87.836,10.246]
[1772490382063,11.35093009,87.879,87.782,14.01149435]
[1772490382064,11.35093009,87.893,87.841,2.20399466]
[1772490382272,3.30856446,87.9,87.851,2.20399466]
[1772490382467,11.35093009,87.899,87.851,2.20399466]
[1772490382666,11.35093009,87.898,87.856,10.243]
[1772490382866,3.30856446,87.89,87.851,2.20399466]
[1772490383066,11.35093009,87.859,87.76,2.20055772]
[1772490383375,3.30856446,87.8,87.76,2.20055772]
[1772490383575,3.30856446,87.81,87.76,2.20055772]
[1772490383772,3.30856446,87.8,87.76,2.20055772]
[1772490383973,3.30856446,87.8,87.75,10.255]
[1772490384176,3.30856446,87.78,87.744,2.19726935]
[1772490384676,159.344,87.858,87.727,2.30029355]
[1772490384677,11.35093009,87.797,87.727,2.30029355]
[1772490385871,11.35093009,87.797,87.74,2.29370776]
[1772490386076,11.35093009,87.819,87.74,2.29370776]
[1772490386277,11.35093009,87.819,87.741,2.4240602]
[1772490386479,11.35093009,87.819,87.768,10.253]
[1772490387677,11.35093009,87.819,87.76,2.4240602]
[1772490388973,11.35093009,87.819,87.763,10.254]
[1772490391986,11.35093009,87.819,87.768,2.69333523]
[1772490392783,11.35093009,87.848,87.792,2.67031575]
[1772490392991,11.35093009,87.848,87.761,2.6673521]
[1772490394083,11.35093009,87.843,87.782,10.252]
[1772490395190,11.35093009,87.841,87.782,10.252]
[1772490396086,10.245,87.84,87.782,10.252]
[1772490396289,11.35093009,87.839,87.782,10.252]
[1772490399791,11.35093009,87.817,87.751,2.54031951]
[1772490401304,11.35093009,87.817,87.768,7.95506393]
[1772490406610,11.35093009,87.809,87.768,7.95506393]
[1772490407003,11.35093009,87.826,87.781,2.39823356]
[1772490407602,11.35093009,87.826,87.79,3.32171544]
[1772490408009,11.35093009,87.826,87.79,13.57271544]
[1772490408312,11.24483787,87.842,87.79,13.57271544]
[1772490408514,11.24483787,87.842,87.79,10.251]
[1772490408810,11.24483787,87.839,87.79,10.251]
[1772490411315,10.245,87.837,87.79,10.251]
[1772490411515,11.24483787,87.836,87.79,10.251]
[1772490411911,11.24483787,87.836,87.781,2.39823356]
[1772490412117,11.24483787,87.819,87.774,10.253]
[1772490415216,11.24483787,87.809,87.767,10.254]
[1772490417016,11.24483787,87.807,87.767,10.254]
[1772490417217,11.24483787,87.807,87.759,10.254]
[1772490418010,11.24483787,87.799,87.759,10.254]
[1772490418217,11.24483787,87.789,87.749,10.256]
[1772490419322,11.24483787,87.804,87.751,2.58863445]
[1772490419722,3.32171544,87.79,87.737,2.58863445]
[1772490420021,11.24483787,87.789,87.737,2.58863445]
[1772490420820,11.24483787,87.789,87.747,10.256]
[1772490421013,11.24483787,87.789,87.737,2.58863445]
[1772490421218,11.24483787,87.789,87.741,2.79842122]
[1772490422220,11.24483787,87.789,87.748,10.256]
[1772490422718,11.24483787,87.789,87.754,10.255]
[1772490424221,3.32171544,87.8,87.758,10.255]
[1772490424422,11.24483787,87.809,87.758,10.255]
[1772490425025,11.24483787,87.793,87.75,10.256]
[1772490426227,10.251,87.791,87.75,10.256]
[1772490426428,11.24483787,87.79,87.75,10.256]
[1772490427022,11.24483787,87.779,87.727,2.92406514]
[1772490428328,11.24483787,87.779,87.74,10.257]
[1772490432836,11.24483787,87.779,87.746,10.256]
[1772490433030,14.10617782,87.818,87.705,20.522]
[1772490433031,11.24483787,87.792,87.751,2.7856011]
[1772490434229,11.24483787,87.792,87.758,10.255]
[1772490441737,10.67551739,87.804,87.761,10.254]
[1772490442136,10.67551739,87.804,87.77,10.253]
[1772490443038,10.67551739,87.804,87.75,3.32171544]
[1772490443242,10.67551739,87.799,87.741,2.98849719]
[1772490444245,10.67551739,87.79,87.749,10.256]
[1772490444439,10.67551739,87.806,87.751,2.98484383]
[1772490444643,10.67551739,87.806,87.761,2.98484383]
[1772490446345,10.67551739,87.806,87.767,10.254]
[1772490449443,3.32171544,87.81,87.767,10.254]
[1772490449444,10.67551739,87.804,87.767,10.254]
[1772490450241,10.67551739,87.804,87.768,3.01989177]
[1772490450542,10.67551739,87.804,87.739,20.514]
[1772490450543,10.67551739,87.833,87.781,3.01989177]
[1772490451446,10.67551739,87.825,87.783,10.252]
[1772490451647,10.67551739,87.825,87.77,3.32171544]
[1772490452041,3.32171544,87.83,87.782,10.252]
[1772490452042,10.67551739,87.819,87.782,10.252]
[1772490453042,10.248,87.817,87.775,10.253]
[1772490453246,10.67551739,87.816,87.775,10.253]
[1772490455949,10.67551739,87.856,87.801,3.18695958]
[1772490456451,10.67551739,87.849,87.801,3.18695958]
[1772490457143,10.67551739,87.847,87.801,3.18695958]
[1772490457348,10.67551739,87.859,87.81,3.32171544]
[1772490457851,10.67551739,87.859,87.817,10.248]
[1772490458748,10.67551739,87.859,87.778,20.505]
[1772490458749,10.242,87.867,87.821,3.32426306]
[1772490459641,20.91751739,87.867,87.821,3.32426306]
[1772490461246,10.67551739,87.866,87.821,3.32426306]
[1772490461645,10.67551739,87.866,87.83,3.32171544]
[1772490462952,10.67551739,87.866,87.824,10.247]
[1772490463651,10.67551739,87.866,87.778,20.505]